[Event "Early-Titled-Tuesday-Blitz-March-26-2024"]
[Site "Chess.com"]
[Date "2024.03.26"]
[Round "7"]
[White "AwareIdea"]
[Black "WiktoriaPOL"]
[Result "1-0"]
[WhiteElo "2506"]
[BlackElo "2284"]
[TimeControl "180+1"]
[EndTime "9:16:18 PDT"]
[Termination "AwareIdea won by resignation"]

1. d4 {[%clk 0:03:00.9]} 1... Nf6 {[%clk 0:02:52.8]} 2. Bf4 {[%clk 0:02:59.2]}
2... d5 {[%clk 0:02:51.3]} 3. e3 {[%clk 0:02:59.2]} 3... c5 {[%clk 0:02:50.7]}
4. Nc3 {[%clk 0:02:59.2]} 4... a6 {[%clk 0:02:48]} 5. Qd2 {[%clk 0:02:57.7]}
5... Nc6 {[%clk 0:02:45.8]} 6. Nf3 {[%clk 0:02:54.6]} 6... b5 {[%clk 0:02:39.7]}
7. Ne5 {[%clk 0:02:52.5]} 7... Bb7 {[%clk 0:02:36.7]} 8. f3 {[%clk 0:02:51.8]}
8... cxd4 {[%clk 0:02:33.7]} 9. exd4 {[%clk 0:02:52.7]} 9... Qb6 {[%clk
0:02:31.9]} 10. O-O-O {[%clk 0:02:50.1]} 10... e6 {[%clk 0:02:31.5]} 11. Nxc6
{[%clk 0:02:34.4]} 11... Qxc6 {[%clk 0:02:29.3]} 12. Ne2 {[%clk 0:02:30.6]}
12... b4 {[%clk 0:02:24.7]} 13. Kb1 {[%clk 0:02:30.5]} 13... a5 {[%clk
0:02:21.7]} 14. Nc1 {[%clk 0:02:25.3]} 14... a4 {[%clk 0:02:17.8]} 15. Nd3
{[%clk 0:02:16.4]} 15... Qb6 {[%clk 0:02:14]} 16. Be5 {[%clk 0:01:56.7]} 16...
Nd7 {[%clk 0:02:02.1]} 17. Nc1 {[%clk 0:01:46]} 17... Nxe5 {[%clk 0:01:43.3]}
18. dxe5 {[%clk 0:01:46.9]} 18... Be7 {[%clk 0:01:42.9]} 19. h4 {[%clk
0:01:44.5]} 19... a3 {[%clk 0:01:40.4]} 20. b3 {[%clk 0:01:40.7]} 20... Bc5
{[%clk 0:01:35.6]} 21. Nd3 {[%clk 0:01:38.8]} 21... Be7 {[%clk 0:01:27.8]} 22.
Qf2 {[%clk 0:01:17.3]} 22... Qc6 {[%clk 0:01:24.8]} 23. Qd2 {[%clk 0:01:12.2]}
23... Rc8 {[%clk 0:01:05.5]} 24. Rc1 {[%clk 0:01:11]} 24... Qb6 {[%clk
0:00:58.9]} 25. Qf2 {[%clk 0:00:57.2]} 25... Qc6 {[%clk 0:00:38.2]} 26. Qd4
{[%clk 0:00:51.9]} 26... Qc3 {[%clk 0:00:21.5]} 27. Qxc3 {[%clk 0:00:48.1]}
27... Rxc3 {[%clk 0:00:22.4]} 28. Nf4 {[%clk 0:00:48.9]} 28... O-O {[%clk
0:00:20.7]} 29. Bd3 {[%clk 0:00:48.4]} 29... Bc5 {[%clk 0:00:17.1]} 30. Ne2
{[%clk 0:00:48.1]} 30... Be3 {[%clk 0:00:15.5]} 31. Nxc3 {[%clk 0:00:45.2]}
31... Bxc1 {[%clk 0:00:15.6]} 32. Kxc1 {[%clk 0:00:41.8]} 32... bxc3 {[%clk
0:00:15.5]} 33. h5 {[%clk 0:00:40.2]} 33... g6 {[%clk 0:00:12.7]} 34. Rh4 {[%clk
0:00:38.1]} 34... Bc6 {[%clk 0:00:10.7]} 35. Kd1 {[%clk 0:00:38]} 35... Rd8
{[%clk 0:00:08.1]} 36. Rd4 {[%clk 0:00:33.4]} 36... Kg7 {[%clk 0:00:07.9]} 37.
hxg6 {[%clk 0:00:26.9]} 37... hxg6 {[%clk 0:00:07.8]} 38. Ke1 {[%clk 0:00:26.3]}
38... f6 {[%clk 0:00:08.1]} 39. exf6+ {[%clk 0:00:25.6]} 39... Kxf6 {[%clk
0:00:09]} 40. f4 {[%clk 0:00:23.2]} 40... Rh8 {[%clk 0:00:06.7]} 41. Rb4 {[%clk
0:00:21]} 41... Rh1+ {[%clk 0:00:06.1]} 42. Kf2 {[%clk 0:00:21.2]} 42... Ra1
{[%clk 0:00:05.8]} 43. Rb6 {[%clk 0:00:19.5]} 43... Be8 {[%clk 0:00:04.8]} 44.
g4 {[%clk 0:00:18.1]} 44... Rxa2 {[%clk 0:00:03.4]} 45. Rb7 {[%clk 0:00:18.5]}
45... Bf7 {[%clk 0:00:03.7]} 46. Ra7 {[%clk 0:00:16]} 46... Ra1 {[%clk
0:00:03.7]} 47. Ke3 {[%clk 0:00:15.5]} 47... a2 {[%clk 0:00:03.6]} 48. Kd4
{[%clk 0:00:15.2]} 48... Rf1 {[%clk 0:00:01.7]} 49. g5+ {[%clk 0:00:12.8]} 49...
Kg7 {[%clk 0:00:01.3]} 50. Rxa2 {[%clk 0:00:13.7]} 50... Rxf4+ {[%clk
0:00:01.3]} 51. Kxc3 {[%clk 0:00:12.1]} 51... Rh4 {[%clk 0:00:01.9]} 52. Ra7
{[%clk 0:00:10.3]} 52... e5 {[%clk 0:00:02.6]} 53. Bb5 {[%clk 0:00:09.6]} 53...
d4+ {[%clk 0:00:03.2]} 54. Kd3 {[%clk 0:00:09.4]} 54... Rf4 {[%clk 0:00:03.9]}
55. Be8 {[%clk 0:00:09.1]} 55... Rf3+ {[%clk 0:00:04.3]} 56. Ke4 {[%clk
0:00:09.1]} 56... Rf5 {[%clk 0:00:04.7]} 57. Bxf7 {[%clk 0:00:09.1]} 57... Rxf7
{[%clk 0:00:05.1]} 58. Rxf7+ {[%clk 0:00:09.8]} 58... Kxf7 {[%clk 0:00:06]} 59.
Kxe5 {[%clk 0:00:10.6]} 59... Ke7 {[%clk 0:00:06.1]} 60. Kxd4 {[%clk 0:00:10.8]}
60... Ke6 {[%clk 0:00:06.3]} 61. Ke4 {[%clk 0:00:11.2]} 61... Kd6 {[%clk
0:00:06.9]} 62. b4 {[%clk 0:00:11.7]} 62... Kc6 {[%clk 0:00:07.2]} 63. c4 {[%clk
0:00:12.6]} 63... Kd6 {[%clk 0:00:07.1]} 64. Kd4 {[%clk 0:00:11.6]} 64... Ke6
{[%clk 0:00:06.1]} 65. b5 {[%clk 0:00:12.2]} 65... Kf5 {[%clk 0:00:06.5]} 66. b6
{[%clk 0:00:12.8]} 1-0

[Event "Early-Titled-Tuesday-Blitz-March-26-2024"]
[Site "Chess.com"]
[Date "2024.03.26"]
[Round "7"]
[White "blitzking1729"]
[Black "Staudenhocker43"]
[Result "1-0"]
[WhiteElo "2767"]
[BlackElo "2555"]
[TimeControl "180+1"]
[EndTime "9:16:19 PDT"]
[Termination "blitzking1729 won by resignation"]

1. Nf3 {[%clk 0:03:00.9]} 1... Nf6 {[%clk 0:02:59.5]} 2. b3 {[%clk 0:03:00.1]}
2... g6 {[%clk 0:02:58.5]} 3. Bb2 {[%clk 0:03:00.8]} 3... Bg7 {[%clk 0:02:59.2]}
4. c4 {[%clk 0:03:01.1]} 4... O-O {[%clk 0:02:57.8]} 5. e3 {[%clk 0:03:01.3]}
5... c5 {[%clk 0:02:49.5]} 6. Be2 {[%clk 0:03:00.6]} 6... d6 {[%clk 0:02:40.8]}
7. d4 {[%clk 0:02:59.4]} 7... Ne4 {[%clk 0:02:37.5]} 8. O-O {[%clk 0:02:57.1]}
8... Nd7 {[%clk 0:02:33.9]} 9. Nc3 {[%clk 0:02:53]} 9... Nxc3 {[%clk 0:02:31.7]}
10. Bxc3 {[%clk 0:02:52.5]} 10... b6 {[%clk 0:02:31.9]} 11. Qc2 {[%clk
0:02:45.8]} 11... Nf6 {[%clk 0:02:24.9]} 12. d5 {[%clk 0:02:44.5]} 12... e6
{[%clk 0:02:21]} 13. dxe6 {[%clk 0:02:37.1]} 13... Bxe6 {[%clk 0:02:19.7]} 14.
Rad1 {[%clk 0:02:37]} 14... Qe7 {[%clk 0:02:18.8]} 15. Qb2 {[%clk 0:02:28]}
15... Rad8 {[%clk 0:02:16]} 16. Ng5 {[%clk 0:02:13.8]} 16... Bf5 {[%clk
0:02:02.4]} 17. Rd2 {[%clk 0:02:01.1]} 17... Ne8 {[%clk 0:01:27.8]} 18. Bxg7
{[%clk 0:01:51.2]} 18... Nxg7 {[%clk 0:01:28.7]} 19. Nf3 {[%clk 0:01:49.7]}
19... Rd7 {[%clk 0:01:29]} 20. Rfd1 {[%clk 0:01:48.2]} 20... Rfd8 {[%clk
0:01:29.7]} 21. h3 {[%clk 0:01:40]} 21... Be4 {[%clk 0:01:28.3]} 22. Nh2 {[%clk
0:01:36.8]} 22... d5 {[%clk 0:01:20.4]} 23. Ng4 {[%clk 0:01:35.4]} 23... Rd6
{[%clk 0:01:15.3]} 24. Nh6+ {[%clk 0:00:48.1]} 24... Kf8 {[%clk 0:01:12.7]} 25.
cxd5 {[%clk 0:00:40.8]} 25... Rxd5 {[%clk 0:01:09.8]} 26. Bc4 {[%clk 0:00:37.5]}
26... Qg5 {[%clk 0:00:59.8]} 27. Ng4 {[%clk 0:00:35.1]} 27... Rxd2 {[%clk
0:00:54.3]} 28. Rxd2 {[%clk 0:00:35.2]} 28... h5 {[%clk 0:00:39.8]} 29. f4
{[%clk 0:00:18]} 29... Qe7 {[%clk 0:00:34.8]} 30. Ne5 {[%clk 0:00:14.4]} 30...
f6 {[%clk 0:00:32.5]} 31. Rxd8+ {[%clk 0:00:08.6]} 31... Qxd8 {[%clk 0:00:32.2]}
32. Nf3 {[%clk 0:00:04.8]} 32... Bxf3 {[%clk 0:00:30.6]} 33. gxf3 {[%clk
0:00:05.7]} 33... Qe7 {[%clk 0:00:23.1]} 34. Kf2 {[%clk 0:00:06.1]} 34... Nf5
{[%clk 0:00:22.3]} 35. e4 {[%clk 0:00:05.5]} 35... Nd4 {[%clk 0:00:22.5]} 36.
Qd2 {[%clk 0:00:05.2]} 36... Kg7 {[%clk 0:00:22]} 37. Qe3 {[%clk 0:00:05.6]}
37... Nc6 {[%clk 0:00:19.4]} 38. Bd5 {[%clk 0:00:05.4]} 38... Qd6 {[%clk
0:00:19.4]} 39. Bxc6 {[%clk 0:00:05.3]} 39... Qxc6 {[%clk 0:00:20.3]} 40. e5
{[%clk 0:00:06]} 40... Qe6 {[%clk 0:00:20.3]} 41. Kg3 {[%clk 0:00:05.8]} 41...
Kf7 {[%clk 0:00:19.1]} 42. Qe4 {[%clk 0:00:05.9]} 42... Qe7 {[%clk 0:00:17.7]}
43. Qd5+ {[%clk 0:00:05.6]} 43... Kg7 {[%clk 0:00:17.6]} 44. e6 {[%clk
0:00:05.3]} 44... Kf8 {[%clk 0:00:13.7]} 45. f5 {[%clk 0:00:05.4]} 45... gxf5
{[%clk 0:00:13.3]} 46. Qxf5 {[%clk 0:00:05.3]} 46... Kg7 {[%clk 0:00:13.9]} 47.
Qd5 {[%clk 0:00:04]} 47... Kg6 {[%clk 0:00:13.5]} 48. f4 {[%clk 0:00:04.5]}
48... f5 {[%clk 0:00:13.3]} 49. Qe5 {[%clk 0:00:04.1]} 49... Kh6 {[%clk
0:00:12.2]} 50. Qh8+ {[%clk 0:00:04]} 50... Kg6 {[%clk 0:00:12.2]} 51. Qe5
{[%clk 0:00:04.6]} 51... Kh6 {[%clk 0:00:12.4]} 52. Qxf5 {[%clk 0:00:04.9]}
52... Qg7+ {[%clk 0:00:11.9]} 53. Qg5+ {[%clk 0:00:05.1]} 53... Qxg5+ {[%clk
0:00:12]} 54. fxg5+ {[%clk 0:00:05.9]} 54... Kg6 {[%clk 0:00:12.2]} 55. h4
{[%clk 0:00:06.2]} 55... b5 {[%clk 0:00:12.2]} 56. Kf4 {[%clk 0:00:06.6]} 56...
a5 {[%clk 0:00:12.1]} 57. Ke3 {[%clk 0:00:06.6]} 57... c4 {[%clk 0:00:09.3]} 58.
bxc4 {[%clk 0:00:06.5]} 58... b4 {[%clk 0:00:10.2]} 59. Kd2 {[%clk 0:00:06.6]}
59... a4 {[%clk 0:00:10.9]} 60. Kc2 {[%clk 0:00:06.1]} 1-0

[Event "Early-Titled-Tuesday-Blitz-March-26-2024"]
[Site "Chess.com"]
[Date "2024.03.26"]
[Round "7"]
[White "sansanathalia"]
[Black "andrew-blr"]
[Result "1-0"]
[WhiteElo "2428"]
[BlackElo "2582"]
[TimeControl "180+1"]
[EndTime "9:16:22 PDT"]
[Termination "sansanathalia won by resignation"]

1. d4 {[%clk 0:03:00.9]} 1... d5 {[%clk 0:02:58.8]} 2. Nf3 {[%clk 0:02:56.8]}
2... Nf6 {[%clk 0:02:57.9]} 3. e3 {[%clk 0:02:54.6]} 3... e6 {[%clk 0:02:57.7]}
4. Be2 {[%clk 0:02:52.3]} 4... c5 {[%clk 0:02:56.7]} 5. O-O {[%clk 0:02:50.7]}
5... Nc6 {[%clk 0:02:57.6]} 6. b3 {[%clk 0:02:49.6]} 6... Be7 {[%clk 0:02:56.5]}
7. Bb2 {[%clk 0:02:49]} 7... O-O {[%clk 0:02:57.1]} 8. Nbd2 {[%clk 0:02:48.5]}
8... a5 {[%clk 0:02:54.3]} 9. c4 {[%clk 0:02:47.3]} 9... a4 {[%clk 0:02:53.6]}
10. cxd5 {[%clk 0:02:27.9]} 10... exd5 {[%clk 0:02:51.5]} 11. dxc5 {[%clk
0:02:25.4]} 11... Bxc5 {[%clk 0:02:49.6]} 12. bxa4 {[%clk 0:02:20.9]} 12... Re8
{[%clk 0:02:40.1]} 13. Bb5 {[%clk 0:02:08.3]} 13... Bg4 {[%clk 0:02:35.5]} 14.
Nb3 {[%clk 0:02:04.1]} 14... Bd6 {[%clk 0:02:31.4]} 15. h3 {[%clk 0:01:41.6]}
15... Be6 {[%clk 0:02:19]} 16. Nfd4 {[%clk 0:01:39.5]} 16... Bd7 {[%clk
0:02:18.9]} 17. Rc1 {[%clk 0:01:37.6]} 17... Rc8 {[%clk 0:02:18.1]} 18. Qd2
{[%clk 0:01:17.8]} 18... Ne4 {[%clk 0:02:17.3]} 19. Qe2 {[%clk 0:01:15.5]} 19...
Qg5 {[%clk 0:02:13.5]} 20. Qf3 {[%clk 0:00:37.9]} 20... Ne5 {[%clk 0:01:57.1]}
21. Qf4 {[%clk 0:00:31.2]} 21... Qg6 {[%clk 0:01:48]} 22. Bxd7 {[%clk
0:00:30.7]} 22... Nxd7 {[%clk 0:01:47.5]} 23. Qf5 {[%clk 0:00:30.4]} 23... Ne5
{[%clk 0:01:36.4]} 24. Rxc8 {[%clk 0:00:26.6]} 24... Rxc8 {[%clk 0:01:31.7]} 25.
Qxc8+ {[%clk 0:00:25.1]} 25... Bf8 {[%clk 0:01:21.7]} 26. Qf5 {[%clk 0:00:23.9]}
26... Nc4 {[%clk 0:01:16.4]} 27. Qxg6 {[%clk 0:00:21.9]} 27... hxg6 {[%clk
0:01:16.4]} 28. Bc1 {[%clk 0:00:21.9]} 28... Nc3 {[%clk 0:01:14.9]} 29. a3
{[%clk 0:00:18.6]} 29... Nxa4 {[%clk 0:01:14.5]} 30. f3 {[%clk 0:00:16.5]} 30...
Nc3 {[%clk 0:01:14.4]} 31. Kf2 {[%clk 0:00:15.7]} 31... f6 {[%clk 0:01:13.9]}
32. Re1 {[%clk 0:00:15.1]} 32... Kf7 {[%clk 0:01:13.5]} 33. e4 {[%clk 0:00:15]}
33... dxe4 {[%clk 0:01:12.4]} 34. fxe4 {[%clk 0:00:15.5]} 34... g5 {[%clk
0:01:10.9]} 35. Kf1 {[%clk 0:00:15.8]} 35... Bd6 {[%clk 0:01:09.6]} 36. Bd2
{[%clk 0:00:15.5]} 36... Na4 {[%clk 0:01:06.4]} 37. Bb4 {[%clk 0:00:15.6]} 37...
Bg3 {[%clk 0:01:05.9]} 38. Rc1 {[%clk 0:00:15.3]} 38... Ne3+ {[%clk 0:01:00.6]}
39. Ke2 {[%clk 0:00:14.9]} 39... Nxg2 {[%clk 0:01:00.6]} 40. Nf5 {[%clk
0:00:14.4]} 40... Bf4 {[%clk 0:01:00.5]} 41. Rg1 {[%clk 0:00:12.7]} 41... Nh4
{[%clk 0:00:56.1]} 42. Nxh4 {[%clk 0:00:12.9]} 42... gxh4 {[%clk 0:00:57]} 43.
Rd1 {[%clk 0:00:13.2]} 43... Ke8 {[%clk 0:00:54.6]} 44. Kf3 {[%clk 0:00:13.3]}
44... Be5 {[%clk 0:00:53.4]} 45. Nc5 {[%clk 0:00:13.5]} 45... Nb2 {[%clk
0:00:52.6]} 46. Rd7 {[%clk 0:00:12.8]} 46... b6 {[%clk 0:00:51]} 47. Rxg7 {[%clk
0:00:12.4]} 47... bxc5 {[%clk 0:00:50.8]} 48. Bxc5 {[%clk 0:00:12.9]} 48... Nd3
{[%clk 0:00:51.4]} 49. Be3 {[%clk 0:00:12.6]} 49... Bd6 {[%clk 0:00:40.7]} 50.
a4 {[%clk 0:00:10.8]} 50... Bb4 {[%clk 0:00:39.4]} 51. Rh7 {[%clk 0:00:10.4]}
51... Nb2 {[%clk 0:00:38.9]} 52. Rxh4 {[%clk 0:00:09.4]} 52... Kf7 {[%clk
0:00:37]} 53. e5 {[%clk 0:00:09.2]} 53... Bc3 {[%clk 0:00:35.5]} 54. exf6 {[%clk
0:00:09]} 54... Bxf6 {[%clk 0:00:34.4]} 55. Rf4 {[%clk 0:00:08.6]} 55... Nd3
{[%clk 0:00:33.4]} 56. Re4 {[%clk 0:00:08.8]} 56... Nb2 {[%clk 0:00:30.7]} 57.
a5 {[%clk 0:00:07.8]} 57... Nd3 {[%clk 0:00:27.7]} 58. a6 {[%clk 0:00:07.8]}
58... Ne1+ {[%clk 0:00:28.6]} 59. Ke2 {[%clk 0:00:07.5]} 59... Nc2 {[%clk
0:00:27.3]} 60. a7 {[%clk 0:00:07.2]} 1-0

[Event "Early-Titled-Tuesday-Blitz-March-26-2024"]
[Site "Chess.com"]
[Date "2024.03.26"]
[Round "7"]
[White "PapaieDudu"]
[Black "KnightmareJoker"]
[Result "0-1"]
[WhiteElo "2434"]
[BlackElo "2312"]
[TimeControl "180+1"]
[EndTime "9:16:29 PDT"]
[Termination "KnightmareJoker won by checkmate"]

1. e4 {[%clk 0:03:00.9]} 1... e5 {[%clk 0:02:59.4]} 2. Nf3 {[%clk 0:03:00.5]}
2... Nc6 {[%clk 0:03:00]} 3. Bb5 {[%clk 0:03:00.3]} 3... a6 {[%clk 0:03:00.4]}
4. Ba4 {[%clk 0:03:00.4]} 4... Nf6 {[%clk 0:03:00.9]} 5. O-O {[%clk 0:02:57.6]}
5... b5 {[%clk 0:03:01.2]} 6. Bb3 {[%clk 0:02:57.1]} 6... Bc5 {[%clk 0:03:01.8]}
7. c3 {[%clk 0:02:52.8]} 7... d6 {[%clk 0:03:01.6]} 8. d4 {[%clk 0:02:51.1]}
8... Bb6 {[%clk 0:03:01.4]} 9. Bg5 {[%clk 0:02:50.2]} 9... h6 {[%clk 0:03:01.1]}
10. Bh4 {[%clk 0:02:49.3]} 10... g5 {[%clk 0:03:00.6]} 11. Bg3 {[%clk
0:02:42.6]} 11... O-O {[%clk 0:02:57.9]} 12. Bc2 {[%clk 0:02:31.2]} 12... Bg4
{[%clk 0:02:56.3]} 13. d5 {[%clk 0:02:25.7]} 13... Ne7 {[%clk 0:02:53.2]} 14. h3
{[%clk 0:02:24.8]} 14... Bh5 {[%clk 0:02:51.7]} 15. Nbd2 {[%clk 0:02:19.4]}
15... Bg6 {[%clk 0:02:44.9]} 16. a4 {[%clk 0:02:07.9]} 16... Nh5 {[%clk
0:02:44.5]} 17. Bh2 {[%clk 0:01:57.5]} 17... Nf4 {[%clk 0:02:43.6]} 18. c4
{[%clk 0:01:45.9]} 18... bxa4 {[%clk 0:02:27.5]} 19. Rxa4 {[%clk 0:01:42.4]}
19... f5 {[%clk 0:02:26.4]} 20. exf5 {[%clk 0:01:32.8]} 20... Bxf5 {[%clk
0:02:26.9]} 21. Bxf5 {[%clk 0:01:26.1]} 21... Nxf5 {[%clk 0:02:27.8]} 22. Qc2
{[%clk 0:01:22.5]} 22... Qe8 {[%clk 0:02:13.7]} 23. Ra3 {[%clk 0:01:04.5]} 23...
Bc5 {[%clk 0:02:04.2]} 24. Rb3 {[%clk 0:00:49.8]} 24... Ne2+ {[%clk 0:02:01.1]}
25. Kh1 {[%clk 0:00:47.8]} 25... Ned4 {[%clk 0:01:59.1]} 26. Qd1 {[%clk
0:00:41.2]} 26... Nxb3 {[%clk 0:01:59]} 27. Nxb3 {[%clk 0:00:41.1]} 27... Bb6
{[%clk 0:01:53.3]} 28. Nfd2 {[%clk 0:00:36.1]} 28... a5 {[%clk 0:01:39.4]} 29.
Ne4 {[%clk 0:00:33.3]} 29... a4 {[%clk 0:01:39.5]} 30. Nc1 {[%clk 0:00:29.4]}
30... Qf7 {[%clk 0:01:38.9]} 31. Nd3 {[%clk 0:00:29.1]} 31... Ne3 {[%clk
0:01:37.9]} 32. Qe2 {[%clk 0:00:16.1]} 32... Nxf1 {[%clk 0:01:38.2]} 33. Qxf1
{[%clk 0:00:16.8]} 33... a3 {[%clk 0:01:36.3]} 34. bxa3 {[%clk 0:00:10.1]} 34...
Rxa3 {[%clk 0:01:36.6]} 35. Nb4 {[%clk 0:00:09.9]} 35... Qf5 {[%clk 0:01:31]}
36. Qe2 {[%clk 0:00:08.6]} 36... Ra1+ {[%clk 0:01:22.6]} 37. Bg1 {[%clk
0:00:09]} 37... Bxf2 {[%clk 0:01:20]} 38. Nxf2 {[%clk 0:00:06.8]} 38... Qxf2
{[%clk 0:01:20.3]} 39. Qxf2 {[%clk 0:00:06]} 39... Rxf2 {[%clk 0:01:20.8]} 40.
Kh2 {[%clk 0:00:05.7]} 40... Rb2 {[%clk 0:01:16.8]} 41. Nd3 {[%clk 0:00:05.4]}
41... Rbb1 {[%clk 0:01:17.2]} 42. Be3 {[%clk 0:00:04.7]} 42... Kf7 {[%clk
0:01:14]} 43. c5 {[%clk 0:00:03.4]} 43... Kg6 {[%clk 0:01:13.8]} 44. Nf2 {[%clk
0:00:03.3]} 44... Rb3 {[%clk 0:01:11]} 45. Bd2 {[%clk 0:00:02.8]} 45... Ra2
{[%clk 0:01:10.4]} 46. Ne4 {[%clk 0:00:03.2]} 46... dxc5 {[%clk 0:01:06.6]} 47.
Be1 {[%clk 0:00:02.9]} 47... Re3 {[%clk 0:01:03.6]} 48. Nc3 {[%clk 0:00:01.8]}
48... Ra3 {[%clk 0:00:59.6]} 49. Nb5 {[%clk 0:00:02]} 49... Rab3 {[%clk
0:00:56.9]} 50. Nxc7 {[%clk 0:00:02.6]} 50... Rxe1 {[%clk 0:00:57.3]} 51. d6
{[%clk 0:00:03]} 51... Rd1 {[%clk 0:00:57.7]} 52. Ne6 {[%clk 0:00:01.7]} 52...
Rxd6 {[%clk 0:00:57.5]} 53. Nxc5 {[%clk 0:00:02.4]} 53... Rb5 {[%clk 0:00:57.7]}
54. Ne4 {[%clk 0:00:02.8]} 54... Rd4 {[%clk 0:00:57.3]} 55. Nc3 {[%clk
0:00:03.3]} 55... Rbd5 {[%clk 0:00:57.8]} 56. Ne2 {[%clk 0:00:03.8]} 56... e4
{[%clk 0:00:57.8]} 57. Kg3 {[%clk 0:00:03.3]} 57... Rd3+ {[%clk 0:00:58]} 58.
Kf2 {[%clk 0:00:03.1]} 58... e3+ {[%clk 0:00:58.2]} 59. Kf3 {[%clk 0:00:03.7]}
59... Rd2 {[%clk 0:00:58.2]} 60. Ng3 {[%clk 0:00:03.7]} 60... e2 {[%clk
0:00:58]} 61. h4 {[%clk 0:00:04.1]} 61... e1=Q {[%clk 0:00:56]} 62. h5+ {[%clk
0:00:04.6]} 62... Kh7 {[%clk 0:00:55.6]} 63. Ne4 {[%clk 0:00:02.7]} 63... Qxe4+
{[%clk 0:00:54.4]} 64. Kxe4 {[%clk 0:00:02.8]} 64... Rxg2 {[%clk 0:00:54.1]} 65.
Kf3 {[%clk 0:00:02.4]} 65... Rh2 {[%clk 0:00:54.4]} 66. Kg4 {[%clk 0:00:02.7]}
66... Rd4+ {[%clk 0:00:54.5]} 67. Kg3 {[%clk 0:00:03.3]} 67... Rxh5 {[%clk
0:00:54.4]} 68. Kf3 {[%clk 0:00:03.2]} 68... g4+ {[%clk 0:00:55]} 69. Kg3 {[%clk
0:00:03.8]} 69... Rd3+ {[%clk 0:00:55.7]} 70. Kg2 {[%clk 0:00:04.4]} 70... g3
{[%clk 0:00:55.5]} 71. Kg1 {[%clk 0:00:04.7]} 71... Re5 {[%clk 0:00:55.6]} 72.
Kg2 {[%clk 0:00:05]} 72... Re2+ {[%clk 0:00:56.1]} 73. Kf1 {[%clk 0:00:05.6]}
73... g2+ {[%clk 0:00:55.8]} 74. Kxe2 {[%clk 0:00:05.7]} 74... Rd8 {[%clk
0:00:54.2]} 75. Kf2 {[%clk 0:00:05.7]} 75... Rg8 {[%clk 0:00:54.6]} 76. Kg1
{[%clk 0:00:06.4]} 76... h5 {[%clk 0:00:54.5]} 77. Kh2 {[%clk 0:00:07.3]} 77...
Kh6 {[%clk 0:00:55.1]} 78. Kg1 {[%clk 0:00:08.2]} 78... Rg5 {[%clk 0:00:54.9]}
79. Kh2 {[%clk 0:00:09.1]} 79... Kg6 {[%clk 0:00:55.6]} 80. Kg1 {[%clk 0:00:10]}
80... Kf5 {[%clk 0:00:56.4]} 81. Kh2 {[%clk 0:00:10.9]} 81... Kf4 {[%clk
0:00:57.2]} 82. Kg1 {[%clk 0:00:11.8]} 82... Kf3 {[%clk 0:00:57.9]} 83. Kh2
{[%clk 0:00:12.7]} 83... Kf2 {[%clk 0:00:58.3]} 84. Kh3 {[%clk 0:00:13.2]} 84...
Rg3+ {[%clk 0:00:58.5]} 85. Kh4 {[%clk 0:00:13.6]} 85... Rh3+ {[%clk 0:00:58.7]}
86. Kxh3 {[%clk 0:00:12.8]} 86... g1=Q {[%clk 0:00:59.1]} 87. Kh4 {[%clk
0:00:13.1]} 87... Qg4# {[%clk 0:00:59.6]} 0-1